[Event "Titled Tuesday Blitz November 01 Early 2022"]
[White "Horcajuelo Rocamora, Martin"]
[Black "Kuznetsova, Olga"]
[WhiteFideId "24573027"]
[BlackFideId "4191323"]
[WhiteElo "2094"]
[BlackElo "2134"]
[Result "1-0"]
[Round "05"]
[TimeControl "180+1"]
[Date "2022.11.02"]
[WhiteClock "0:00:18"]
[BlackClock "0:00:22"]

1. e4 {[%clk 0:01:54]}  e5 {[%clk 0:02:47]} 2. Nf3 {[%clk 0:01:48]}  Nf6 {[%clk 0:02:47]} 3. Nxe5 {[%clk 0:01:45]}  d6 {[%clk 0:02:48]} 4. Nf3 {[%clk 0:01:45]}  Nxe4 {[%clk 0:02:48]} 5. Nc3 {[%clk 0:01:46]}  Nxc3 {[%clk 0:02:48]} 6. dxc3 {[%clk 0:01:47]}  Be7 {[%clk 0:02:49]} 7. Be3 {[%clk 0:01:47]}  Nc6 {[%clk 0:02:50]} 8. Qd2 {[%clk 0:01:47]}  Bf5 {[%clk 0:02:50]} 9. Be2 {[%clk 0:01:48]}  Qd7 {[%clk 0:02:51]} 10. O-O-O {[%clk 0:01:48]}  O-O {[%clk 0:02:51]} 11. h3 {[%clk 0:01:48]}  Rae8 {[%clk 0:02:51]} 12. g4 {[%clk 0:01:48]}  Be4 {[%clk 0:02:51]} 13. Rhg1 {[%clk 0:01:47]}  Bd8 {[%clk 0:02:52]} 14. Nd4 {[%clk 0:01:47]}  Nxd4 {[%clk 0:02:51]} 15. Bxd4 {[%clk 0:01:46]}  Qa4 {[%clk 0:02:44]} 16. Bd3 {[%clk 0:01:18]}  Bf3 {[%clk 0:02:40]} 17. Kb1 {[%clk 0:01:09]}  Bxd1 {[%clk 0:02:39]} 18. Rxd1 {[%clk 0:01:10]}  Bh4 {[%clk 0:02:34]} 19. b3 {[%clk 0:00:56]}  Qc6 {[%clk 0:02:30]} 20. Qf4 {[%clk 0:00:48]}  Qd5 {[%clk 0:02:13]} 21. f3 {[%clk 0:00:24]}  Qg5 {[%clk 0:02:06]} 22. Qxg5 {[%clk 0:00:15]}  Bxg5 {[%clk 0:02:06]} 23. Be4 {[%clk 0:00:16]}  b6 {[%clk 0:02:05]} 24. Kb2 {[%clk 0:00:14]}  Re7 {[%clk 0:02:04]} 25. c4 {[%clk 0:00:13]}  g6 {[%clk 0:02:01]} 26. Rf1 {[%clk 0:00:12]}  Rfe8 {[%clk 0:02:00]} 27. f4 {[%clk 0:00:12]}  Bh4 {[%clk 0:01:59]} 28. Bd5 {[%clk 0:00:12]}  Re1 {[%clk 0:01:47]} 29. Rf3 {[%clk 0:00:11]}  Rd1 {[%clk 0:01:44]} 30. Bc3 {[%clk 0:00:11]}  Be1 {[%clk 0:01:44]} 31. f5 {[%clk 0:00:10]}  Bxc3+ {[%clk 0:01:34]} 32. Kxc3 {[%clk 0:00:11]}  gxf5 {[%clk 0:01:34]} 33. Rxf5 {[%clk 0:00:11]}  Re7 {[%clk 0:01:31]} 34. h4 {[%clk 0:00:11]}  h6 {[%clk 0:01:29]} 35. g5 {[%clk 0:00:11]}  hxg5 {[%clk 0:01:29]} 36. Rxg5+ {[%clk 0:00:12]}  Kh7 {[%clk 0:01:28]} 37. Rf5 {[%clk 0:00:11]}  Kg6 {[%clk 0:01:27]} 38. Rg5+ {[%clk 0:00:11]}  Kf6 {[%clk 0:01:27]} 39. Rh5 {[%clk 0:00:11]}  Rg1 {[%clk 0:01:15]} 40. Rh8 {[%clk 0:00:11]}  Re3+ {[%clk 0:01:10]} 41. Kb2 {[%clk 0:00:10]}  Rh3 {[%clk 0:01:09]} 42. Rc8 {[%clk 0:00:09]}  c5 {[%clk 0:01:09]} 43. Rc7 {[%clk 0:00:10]}  Rg7 {[%clk 0:01:08]} 44. Rxa7 {[%clk 0:00:10]}  Rxh4 {[%clk 0:01:07]} 45. Rb7 {[%clk 0:00:10]}  Ke5 {[%clk 0:01:07]} 46. Rxb6 {[%clk 0:00:10]}  f5 {[%clk 0:01:07]} 47. Rb8 {[%clk 0:00:11]}  Rh2 {[%clk 0:00:49]} 48. Re8+ {[%clk 0:00:09]}  Kf4 {[%clk 0:00:49]} 49. Rf8 {[%clk 0:00:08]}  Kg5 {[%clk 0:00:42]} 50. a4 {[%clk 0:00:08]}  Rg6 {[%clk 0:00:37]} 51. a5 {[%clk 0:00:07]}  Rf6 {[%clk 0:00:35]} 52. Rxf6 {[%clk 0:00:07]}  Kxf6 {[%clk 0:00:36]} 53. a6 {[%clk 0:00:08]}  Rh7 {[%clk 0:00:36]} 54. Bb7 {[%clk 0:00:08]}  f4 {[%clk 0:00:19]} 55. a7 {[%clk 0:00:08]}  Rxb7 {[%clk 0:00:20]} 56. a8=Q {[%clk 0:00:07]}  Re7 {[%clk 0:00:20]} 57. Qf8+ {[%clk 0:00:08]}  Ke6 {[%clk 0:00:19]} 58. Qxf4 {[%clk 0:00:07]}  Rf7 {[%clk 0:00:20]} 59. Qe4+ {[%clk 0:00:08]}  Kd7 {[%clk 0:00:20]} 60. Qd5 {[%clk 0:00:08]}  Rf6 {[%clk 0:00:20]} 61. Qb7+ {[%clk 0:00:09]}  Ke6 {[%clk 0:00:21]} 62. Qd5+ {[%clk 0:00:10]}  Ke7 {[%clk 0:00:21]} 63. Ka3 {[%clk 0:00:10]}  Rf1 {[%clk 0:00:21]} 64. Ka4 {[%clk 0:00:11]}  Re1 {[%clk 0:00:16]} 65. Kb5 {[%clk 0:00:11]}  Re5 {[%clk 0:00:16]} 66. Qxe5+ {[%clk 0:00:11]}  dxe5 {[%clk 0:00:16]} 67. Kxc5 {[%clk 0:00:12]}  Ke6 {[%clk 0:00:17]} 68. Kb4 {[%clk 0:00:12]}  e4 {[%clk 0:00:17]} 69. Kc3 {[%clk 0:00:13]}  Ke5 {[%clk 0:00:18]} 70. Kd2 {[%clk 0:00:14]}  Kd4 {[%clk 0:00:19]} 71. Ke2 {[%clk 0:00:15]}  Kc3 {[%clk 0:00:19]} 72. c5 {[%clk 0:00:15]}  Kxc2 {[%clk 0:00:20]} 73. c6 {[%clk 0:00:16]}  Kc3 {[%clk 0:00:21]} 74. c7 {[%clk 0:00:17]}  Kxb3 {[%clk 0:00:22]} 75. c8=Q {[%clk 0:00:18]} 1-0


[Site "https://www.chess.com"]

[Event "Titled Tuesday Blitz November 01 Early 2022"]
[White "Ilkhomi, Jaloliddin"]
[Black "Mekhitarian, Krikor Sevag"]
[WhiteFideId "14700948"]
[BlackFideId "2107660"]
[WhiteElo "2045"]
[BlackElo "2614"]
[Result "0-1"]
[Round "05"]
[TimeControl "180+1"]
[Date "2022.11.02"]
[WhiteClock "0:00:13"]
[BlackClock "0:00:05"]

1. d4 {[%clk 0:03:00]}  Nf6 {[%clk 0:02:54]} 2. Bf4 {[%clk 0:03:00]}  g6 {[%clk 0:02:45]} 3. e3 {[%clk 0:03:00]}  Bg7 {[%clk 0:02:45]} 4. Nf3 {[%clk 0:03:00]}  O-O {[%clk 0:02:45]} 5. h3 {[%clk 0:03:00]}  c5 {[%clk 0:02:46]} 6. c3 {[%clk 0:03:00]}  d6 {[%clk 0:02:46]} 7. Nbd2 {[%clk 0:03:00]}  cxd4 {[%clk 0:02:43]} 8. exd4 {[%clk 0:03:00]}  Nc6 {[%clk 0:02:43]} 9. Bc4 {[%clk 0:02:59]}  e5 {[%clk 0:02:44]} 10. dxe5 {[%clk 0:02:45]}  dxe5 {[%clk 0:02:44]} 11. Be3 {[%clk 0:02:46]}  Nd5 {[%clk 0:02:13]} 12. Bxd5 {[%clk 0:02:37]}  Qxd5 {[%clk 0:02:13]} 13. Qb3 {[%clk 0:02:24]}  Be6 {[%clk 0:02:04]} 14. Qxd5 {[%clk 0:02:21]}  Bxd5 {[%clk 0:02:05]} 15. O-O {[%clk 0:02:21]}  f5 {[%clk 0:02:00]} 16. Bc5 {[%clk 0:02:19]}  Rfe8 {[%clk 0:01:56]} 17. Rfd1 {[%clk 0:02:03]}  Rad8 {[%clk 0:01:54]} 18. Ne1 {[%clk 0:01:47]}  b6 {[%clk 0:01:52]} 19. Ba3 {[%clk 0:01:45]}  e4 {[%clk 0:01:45]} 20. Nc2 {[%clk 0:01:44]}  f4 {[%clk 0:01:40]} 21. Nb3 {[%clk 0:01:35]}  g5 {[%clk 0:01:31]} 22. Nbd4 {[%clk 0:01:25]}  Nxd4 {[%clk 0:01:31]} 23. Nxd4 {[%clk 0:01:26]}  e3 {[%clk 0:01:32]} 24. fxe3 {[%clk 0:01:18]}  fxe3 {[%clk 0:01:03]} 25. Nf5 {[%clk 0:01:18]}  e2 {[%clk 0:00:53]} 26. Re1 {[%clk 0:01:08]}  Bf6 {[%clk 0:00:44]} 27. Kf2 {[%clk 0:00:56]}  Bc4 {[%clk 0:00:32]} 28. Nd6 {[%clk 0:00:55]}  Rxd6 {[%clk 0:00:32]} 29. Bxd6 {[%clk 0:00:56]}  Bd3 {[%clk 0:00:28]} 30. a4 {[%clk 0:00:45]}  a6 {[%clk 0:00:27]} 31. Ra2 {[%clk 0:00:40]}  Kf7 {[%clk 0:00:22]} 32. Bg3 {[%clk 0:00:36]}  Kg6 {[%clk 0:00:21]} 33. Raa1 {[%clk 0:00:30]}  h5 {[%clk 0:00:20]} 34. h4 {[%clk 0:00:30]}  gxh4 {[%clk 0:00:20]} 35. Bf4 {[%clk 0:00:30]}  Kf5 {[%clk 0:00:20]} 36. Be3 {[%clk 0:00:28]}  h3 {[%clk 0:00:15]} 37. g3 {[%clk 0:00:24]}  Kg4 {[%clk 0:00:13]} 38. Bxb6 {[%clk 0:00:18]}  Be5 {[%clk 0:00:12]} 39. Rg1 {[%clk 0:00:15]}  Bb8 {[%clk 0:00:10]} 40. Be3 {[%clk 0:00:13]}  Rf8+ {[%clk 0:00:08]} 41. Bf4 {[%clk 0:00:12]}  Ba7+ {[%clk 0:00:04]} 42. Ke1 {[%clk 0:00:09]}  Bxg1 {[%clk 0:00:04]} 43. Kd2 {[%clk 0:00:10]}  h2 {[%clk 0:00:04]} 44. Kxd3 {[%clk 0:00:09]}  h1=Q {[%clk 0:00:03]} 45. Kxe2 {[%clk 0:00:10]}  Qg2+ {[%clk 0:00:03]} 46. Kd3 {[%clk 0:00:09]}  Bf2 {[%clk 0:00:04]} 47. Kc4 {[%clk 0:00:09]}  Bxg3 {[%clk 0:00:04]} 48. Be3 {[%clk 0:00:09]}  Qe4+ {[%clk 0:00:03]} 49. Bd4 {[%clk 0:00:10]}  Bf2 {[%clk 0:00:04]} 50. Kb4 {[%clk 0:00:11]}  Bxd4 {[%clk 0:00:04]} 51. Re1 {[%clk 0:00:12]}  Qxe1 {[%clk 0:00:03]} 52. Ka5 {[%clk 0:00:12]}  Qe5+ {[%clk 0:00:04]} 53. Kb4 {[%clk 0:00:12]}  Qc5+ {[%clk 0:00:03]} 54. Kb3 {[%clk 0:00:12]}  Rb8+ {[%clk 0:00:04]} 55. Kc2 {[%clk 0:00:13]}  Rxb2+ {[%clk 0:00:04]} 56. Kd1 {[%clk 0:00:12]}  Qxc3 {[%clk 0:00:05]} 57. a5 {[%clk 0:00:13]}  Qd2# {[%clk 0:00:05]} 0-1


[Site "https://www.chess.com"]

[Event "Titled Tuesday Blitz November 01 Early 2022"]
[White "Khamdamova, Afruza"]
[Black "Dushyant Sharma"]
[WhiteFideId "14210444"]
[BlackFideId "25065130"]
[WhiteElo "2018"]
[BlackElo "2270"]
[Result "0-1"]
[Round "05"]
[TimeControl "180+1"]
[Date "2022.11.02"]
[WhiteClock "0:00:02"]
[BlackClock "0:00:05"]

1. e4 {[%clk 0:03:00]}  d5 {[%clk 0:02:59]} 2. exd5 {[%clk 0:03:00]}  Nf6 {[%clk 0:03:00]} 3. Nf3 {[%clk 0:02:58]}  Bg4 {[%clk 0:02:59]} 4. d4 {[%clk 0:02:54]}  Qxd5 {[%clk 0:02:58]} 5. Be2 {[%clk 0:02:53]}  Nc6 {[%clk 0:02:57]} 6. c4 {[%clk 0:02:44]}  Qf5 {[%clk 0:02:54]} 7. Be3 {[%clk 0:02:28]}  O-O-O {[%clk 0:02:52]} 8. O-O {[%clk 0:02:19]}  e5 {[%clk 0:02:49]} 9. d5 {[%clk 0:02:17]}  e4 {[%clk 0:02:45]} 10. Nd4 {[%clk 0:01:50]}  Nxd4 {[%clk 0:02:25]} 11. Bxd4 {[%clk 0:01:50]}  Bd6 {[%clk 0:02:19]} 12. h3 {[%clk 0:01:27]}  Bxh3 {[%clk 0:02:07]} 13. gxh3 {[%clk 0:01:04]}  Qf4 {[%clk 0:00:59]} 14. Bg4+ {[%clk 0:00:51]}  Kb8 {[%clk 0:00:59]} 15. Re1 {[%clk 0:00:46]}  h5 {[%clk 0:01:00]} 16. c5 {[%clk 0:00:20]}  hxg4 {[%clk 0:00:05]} 17. cxd6 {[%clk 0:00:19]}  Rxd6 {[%clk 0:00:04]} 18. Nc3 {[%clk 0:00:18]}  gxh3 {[%clk 0:00:03]} 19. Kf1 {[%clk 0:00:16]}  h2 {[%clk 0:00:02]} 20. Ke2 {[%clk 0:00:16]}  Nxd5 {[%clk 0:00:01]} 21. Nxd5 {[%clk 0:00:03]}  Qf3+ {[%clk 0:00:02]} 22. Kd2 {[%clk 0:00:03]}  Qd3+ {[%clk 0:00:03]} 23. Kc1 {[%clk 0:00:02]}  Qc4+ {[%clk 0:00:04]} 24. Nc3 {[%clk 0:00:02]}  Rxd4 {[%clk 0:00:05]} 0-1


[Site "https://www.chess.com"]

[Event "Titled Tuesday Blitz November 01 Early 2022"]
[White "Kirillov, Dmitry"]
[Black "Szente Varga, Fruzsina"]
[WhiteFideId "34180572"]
[BlackFideId "712264"]
[WhiteElo "2095"]
[BlackElo "1994"]
[Result "1/2-1/2"]
[Round "05"]
[TimeControl "180+1"]
[Date "2022.11.02"]
[WhiteClock "0:00:10"]
[BlackClock "0:00:12"]

1. e4 {[%clk 0:02:54]}  e5 {[%clk 0:02:54]} 2. Nf3 {[%clk 0:02:54]}  Nc6 {[%clk 0:02:54]} 3. d4 {[%clk 0:02:53]}  exd4 {[%clk 0:02:54]} 4. c3 {[%clk 0:02:53]}  d6 {[%clk 0:02:49]} 5. cxd4 {[%clk 0:02:53]}  Bg4 {[%clk 0:02:49]} 6. Be2 {[%clk 0:02:46]}  Nf6 {[%clk 0:02:46]} 7. Nc3 {[%clk 0:02:43]}  Be7 {[%clk 0:02:39]} 8. O-O {[%clk 0:02:43]}  O-O {[%clk 0:02:39]} 9. h3 {[%clk 0:02:42]}  Bxf3 {[%clk 0:02:27]} 10. Bxf3 {[%clk 0:02:43]}  Qd7 {[%clk 0:02:27]} 11. Bf4 {[%clk 0:02:38]}  Rad8 {[%clk 0:02:00]} 12. d5 {[%clk 0:02:29]}  Nb8 {[%clk 0:01:54]} 13. Rc1 {[%clk 0:02:25]}  Rfe8 {[%clk 0:01:48]} 14. Re1 {[%clk 0:02:23]}  c6 {[%clk 0:01:45]} 15. Qd3 {[%clk 0:02:21]}  c5 {[%clk 0:01:40]} 16. a3 {[%clk 0:02:17]}  a6 {[%clk 0:01:40]} 17. b4 {[%clk 0:02:14]}  Rc8 {[%clk 0:01:10]} 18. e5 {[%clk 0:01:54]}  dxe5 {[%clk 0:01:08]} 19. Bxe5 {[%clk 0:01:55]}  cxb4 {[%clk 0:01:06]} 20. Bxf6 {[%clk 0:01:54]}  Bxf6 {[%clk 0:01:05]} 21. Bg4 {[%clk 0:01:54]}  Rxe1+ {[%clk 0:00:38]} 22. Rxe1 {[%clk 0:01:54]}  Qd8 {[%clk 0:00:39]} 23. Bxc8 {[%clk 0:01:53]}  Bxc3 {[%clk 0:00:39]} 24. Rc1 {[%clk 0:01:42]}  a5 {[%clk 0:00:32]} 25. Bxb7 {[%clk 0:01:40]}  Qd6 {[%clk 0:00:32]} 26. axb4 {[%clk 0:01:37]}  axb4 {[%clk 0:00:32]} 27. Qb5 {[%clk 0:01:37]}  g6 {[%clk 0:00:30]} 28. Bc6 {[%clk 0:01:32]}  Qf4 {[%clk 0:00:26]} 29. Rd1 {[%clk 0:01:27]}  Qd6 {[%clk 0:00:24]} 30. Qb7 {[%clk 0:01:22]}  Kg7 {[%clk 0:00:20]} 31. Rd3 {[%clk 0:01:13]}  Qf4 {[%clk 0:00:18]} 32. Rf3 {[%clk 0:01:06]}  Qc1+ {[%clk 0:00:17]} 33. Kh2 {[%clk 0:01:07]}  Be5+ {[%clk 0:00:17]} 34. g3 {[%clk 0:01:05]}  Nxc6 {[%clk 0:00:11]} 35. dxc6 {[%clk 0:00:51]}  Qc4 {[%clk 0:00:09]} 36. Qd7 {[%clk 0:00:45]}  b3 {[%clk 0:00:06]} 37. Qb7 {[%clk 0:00:40]}  b2 {[%clk 0:00:06]} 38. Kg2 {[%clk 0:00:34]}  b1=Q {[%clk 0:00:05]} 39. Qxb1 {[%clk 0:00:32]}  Qxc6 {[%clk 0:00:06]} 40. Qb3 {[%clk 0:00:20]}  Bf6 {[%clk 0:00:06]} 41. Kh2 {[%clk 0:00:20]}  h6 {[%clk 0:00:06]} 42. g4 {[%clk 0:00:21]}  Qd6+ {[%clk 0:00:06]} 43. Kg2 {[%clk 0:00:21]}  Qd7 {[%clk 0:00:06]} 44. Qc4 {[%clk 0:00:20]}  h5 {[%clk 0:00:04]} 45. Rd3 {[%clk 0:00:15]}  Qb7+ {[%clk 0:00:03]} 46. Rf3 {[%clk 0:00:12]}  hxg4 {[%clk 0:00:04]} 47. hxg4 {[%clk 0:00:13]}  g5 {[%clk 0:00:04]} 48. Qd3 {[%clk 0:00:11]}  Qe7 {[%clk 0:00:04]} 49. Qf5 {[%clk 0:00:10]}  Qd8 {[%clk 0:00:05]} 50. Rh3 {[%clk 0:00:10]}  Qa8+ {[%clk 0:00:03]} 51. Qf3 {[%clk 0:00:07]}  Qxf3+ {[%clk 0:00:03]} 52. Kxf3 {[%clk 0:00:07]}  Kg6 {[%clk 0:00:03]} 53. Ke4 {[%clk 0:00:08]}  Be7 {[%clk 0:00:03]} 54. f4 {[%clk 0:00:08]}  gxf4 {[%clk 0:00:03]} 55. Kxf4 {[%clk 0:00:08]}  Bg5+ {[%clk 0:00:04]} 56. Ke4 {[%clk 0:00:07]}  f6 {[%clk 0:00:04]} 57. Rf3 {[%clk 0:00:05]}  Kg7 {[%clk 0:00:05]} 58. Rf5 {[%clk 0:00:06]}  Kg6 {[%clk 0:00:05]} 59. Kd5 {[%clk 0:00:06]}  Kf7 {[%clk 0:00:05]} 60. Rxg5 {[%clk 0:00:03]}  fxg5 {[%clk 0:00:06]} 61. Ke5 {[%clk 0:00:03]}  Kg6 {[%clk 0:00:06]} 62. Ke6 {[%clk 0:00:04]}  Kh6 {[%clk 0:00:06]} 63. Kf5 {[%clk 0:00:04]}  Kh7 {[%clk 0:00:06]} 64. Kf6 {[%clk 0:00:04]}  Kh6 {[%clk 0:00:07]} 65. Kf5 {[%clk 0:00:02]}  Kh7 {[%clk 0:00:07]} 66. Kxg5 {[%clk 0:00:03]}  Kg7 {[%clk 0:00:08]} 67. Kf5 {[%clk 0:00:04]}  Kf7 {[%clk 0:00:08]} 68. g5 {[%clk 0:00:04]}  Kg7 {[%clk 0:00:09]} 69. Kf4 {[%clk 0:00:03]}  Kg6 {[%clk 0:00:09]} 70. Kg4 {[%clk 0:00:04]}  Kg7 {[%clk 0:00:09]} 71. Kh5 {[%clk 0:00:05]}  Kh7 {[%clk 0:00:10]} 72. g6+ {[%clk 0:00:06]}  Kg7 {[%clk 0:00:10]} 73. Kg5 {[%clk 0:00:07]}  Kg8 {[%clk 0:00:11]} 74. Kf6 {[%clk 0:00:07]}  Kf8 {[%clk 0:00:11]} 75. Kf5 {[%clk 0:00:08]}  Kg7 {[%clk 0:00:12]} 76. Kg5 {[%clk 0:00:09]}  Kg8 {[%clk 0:00:12]} 77. Kh5 {[%clk 0:00:10]}  Kg7 {[%clk 0:00:12]} 78. Kg5 {[%clk 0:00:10]} 1/2-1/2


[Site "https://www.chess.com"]

[Event "Titled Tuesday Blitz November 01 Early 2022"]
[White "Koridze, Lile"]
[Black "Fathy, Elameir"]
[WhiteFideId "13612514"]
[BlackFideId "10600396"]
[WhiteElo "2050"]
[BlackElo "2311"]
[Result "1-0"]
[Round "05"]
[TimeControl "180+1"]
[Date "2022.11.02"]
[WhiteClock "0:00:39"]
[BlackClock "0:00:01"]

1. d4 {[%clk 0:03:00]}  d5 {[%clk 0:03:00]} 2. c4 {[%clk 0:03:01]}  e6 {[%clk 0:03:00]} 3. Nf3 {[%clk 0:03:00]}  c6 {[%clk 0:03:00]} 4. e3 {[%clk 0:02:58]}  f5 {[%clk 0:02:59]} 5. Nbd2 {[%clk 0:02:47]}  Nf6 {[%clk 0:02:50]} 6. b3 {[%clk 0:02:46]}  Bd6 {[%clk 0:02:47]} 7. Bb2 {[%clk 0:02:46]}  O-O {[%clk 0:02:45]} 8. Bd3 {[%clk 0:02:42]}  b6 {[%clk 0:02:24]} 9. O-O {[%clk 0:02:41]}  Nbd7 {[%clk 0:02:14]} 10. Ne5 {[%clk 0:02:41]}  Bxe5 {[%clk 0:02:07]} 11. dxe5 {[%clk 0:02:41]}  Ng4 {[%clk 0:02:06]} 12. Nf3 {[%clk 0:02:40]}  Qc7 {[%clk 0:01:57]} 13. cxd5 {[%clk 0:02:40]}  exd5 {[%clk 0:01:42]} 14. e6 {[%clk 0:02:40]}  Nc5 {[%clk 0:01:29]} 15. h3 {[%clk 0:02:29]}  Nf6 {[%clk 0:01:28]} 16. Bxf5 {[%clk 0:02:28]}  Bxe6 {[%clk 0:01:23]} 17. Nd4 {[%clk 0:02:05]}  Bxf5 {[%clk 0:01:19]} 18. Nxf5 {[%clk 0:02:05]}  Qd7 {[%clk 0:01:07]} 19. Nd4 {[%clk 0:02:02]}  Nfe4 {[%clk 0:00:52]} 20. Rc1 {[%clk 0:01:51]}  Rac8 {[%clk 0:00:50]} 21. b4 {[%clk 0:01:46]}  Nb7 {[%clk 0:00:32]} 22. Qa4 {[%clk 0:01:34]}  Nd2 {[%clk 0:00:23]} 23. Rfd1 {[%clk 0:01:33]}  Nc4 {[%clk 0:00:23]} 24. Qb3 {[%clk 0:01:25]}  b5 {[%clk 0:00:20]} 25. Ba1 {[%clk 0:01:22]}  Qf7 {[%clk 0:00:19]} 26. Nf3 {[%clk 0:01:22]}  Nbd6 {[%clk 0:00:18]} 27. a4 {[%clk 0:01:19]}  Qg6 {[%clk 0:00:17]} 28. axb5 {[%clk 0:01:18]}  Rxf3 {[%clk 0:00:17]} 29. bxc6 {[%clk 0:01:11]}  Rf5 {[%clk 0:00:15]} 30. b5 {[%clk 0:01:03]}  Rcf8 {[%clk 0:00:13]} 31. Rc2 {[%clk 0:01:00]}  Ne4 {[%clk 0:00:07]} 32. Qa2 {[%clk 0:00:45]}  Rxf2 {[%clk 0:00:05]} 33. Rxf2 {[%clk 0:00:43]}  Rxf2 {[%clk 0:00:06]} 34. Qxf2 {[%clk 0:00:42]}  Nxf2 {[%clk 0:00:06]} 35. Kxf2 {[%clk 0:00:43]}  Qc2+ {[%clk 0:00:06]} 36. Kg3 {[%clk 0:00:43]}  Qg6+ {[%clk 0:00:03]} 37. Kf2 {[%clk 0:00:42]}  Qf5+ {[%clk 0:00:02]} 38. Kg1 {[%clk 0:00:42]}  Nxe3 {[%clk 0:00:02]} 39. Rc1 {[%clk 0:00:41]}  Qe4 {[%clk 0:00:01]} 40. Kf2 {[%clk 0:00:39]} 1-0


[Site "https://www.chess.com"]

[Event "Titled Tuesday Blitz November 01 Early 2022"]
[White "Kotepalli, Sai Nirupama"]
[Black "Guzman Moneo, Alberto"]
[WhiteFideId "5039444"]
[BlackFideId "2209616"]
[WhiteElo "2393"]
[BlackElo "2157"]
[Result "1-0"]
[Round "05"]
[TimeControl "180+1"]
[Date "2022.11.02"]
[WhiteClock "0:00:50"]
[BlackClock "0:00:01"]

1. e4 {[%clk 0:03:00]}  c5 {[%clk 0:02:59]} 2. Nf3 {[%clk 0:02:59]}  Nc6 {[%clk 0:02:58]} 3. d3 {[%clk 0:02:59]}  Nf6 {[%clk 0:02:56]} 4. g3 {[%clk 0:02:59]}  d5 {[%clk 0:02:56]} 5. e5 {[%clk 0:02:58]}  Ng4 {[%clk 0:02:55]} 6. Bf4 {[%clk 0:02:57]}  g5 {[%clk 0:02:23]} 7. Nxg5 {[%clk 0:02:46]}  Bg7 {[%clk 0:02:15]} 8. c3 {[%clk 0:02:39]}  Ngxe5 {[%clk 0:02:09]} 9. Bg2 {[%clk 0:02:38]}  Ng6 {[%clk 0:02:03]} 10. Be3 {[%clk 0:02:34]}  d4 {[%clk 0:01:59]} 11. Bd2 {[%clk 0:02:32]}  Qb6 {[%clk 0:01:55]} 12. Qc2 {[%clk 0:02:27]}  O-O {[%clk 0:01:51]} 13. Na3 {[%clk 0:02:24]}  e5 {[%clk 0:01:48]} 14. Nc4 {[%clk 0:02:16]}  Qc7 {[%clk 0:01:47]} 15. O-O {[%clk 0:02:14]}  Bf5 {[%clk 0:01:39]} 16. Rae1 {[%clk 0:02:08]}  Rae8 {[%clk 0:01:30]} 17. Ne4 {[%clk 0:02:07]}  Bxe4 {[%clk 0:01:17]} 18. Bxe4 {[%clk 0:02:04]}  b5 {[%clk 0:01:12]} 19. Na3 {[%clk 0:02:02]}  a6 {[%clk 0:01:03]} 20. h4 {[%clk 0:01:57]}  f5 {[%clk 0:00:56]} 21. Bxc6 {[%clk 0:01:50]}  Qxc6 {[%clk 0:00:56]} 22. cxd4 {[%clk 0:01:50]}  exd4 {[%clk 0:00:51]} 23. f4 {[%clk 0:01:46]}  Ne7 {[%clk 0:00:34]} 24. b4 {[%clk 0:01:43]}  cxb4 {[%clk 0:00:29]} 25. Bxb4 {[%clk 0:01:43]}  Qxc2 {[%clk 0:00:25]} 26. Nxc2 {[%clk 0:01:43]}  Rc8 {[%clk 0:00:18]} 27. Bxe7 {[%clk 0:01:42]}  Rxc2 {[%clk 0:00:17]} 28. Bxf8 {[%clk 0:01:42]}  Bxf8 {[%clk 0:00:15]} 29. Rf2 {[%clk 0:01:41]}  Rc3 {[%clk 0:00:15]} 30. Rd2 {[%clk 0:01:41]}  Bb4 {[%clk 0:00:14]} 31. Rb1 {[%clk 0:01:36]}  a5 {[%clk 0:00:12]} 32. Kf1 {[%clk 0:01:27]}  Ra3 {[%clk 0:00:12]} 33. Rc2 {[%clk 0:01:16]}  Rxd3 {[%clk 0:00:11]} 34. Kf2 {[%clk 0:01:17]}  Ra3 {[%clk 0:00:09]} 35. Rbb2 {[%clk 0:01:11]}  Kf7 {[%clk 0:00:07]} 36. Rc7+ {[%clk 0:01:10]}  Ke6 {[%clk 0:00:07]} 37. Rb7 {[%clk 0:01:10]}  Kd5 {[%clk 0:00:07]} 38. Rxb5+ {[%clk 0:01:09]}  Kc4 {[%clk 0:00:07]} 39. Rxf5 {[%clk 0:01:09]}  Rc3 {[%clk 0:00:06]} 40. Rf7 {[%clk 0:01:08]}  Kd3 {[%clk 0:00:06]} 41. Rxh7 {[%clk 0:01:05]}  Rc1 {[%clk 0:00:05]} 42. a3 {[%clk 0:01:01]}  Be1+ {[%clk 0:00:03]} 43. Kf3 {[%clk 0:01:00]}  Bc3 {[%clk 0:00:02]} 44. Rf2 {[%clk 0:00:59]}  Be1 {[%clk 0:00:01]} 45. Rf1 {[%clk 0:00:56]}  Kd2 {[%clk 0:00:02]} 46. Re7 {[%clk 0:00:55]}  d3 {[%clk 0:00:02]} 47. Re3 {[%clk 0:00:50]}  a4 {[%clk 0:00:01]} 48. h5 {[%clk 0:00:50]} 1-0


[Site "https://www.chess.com"]